[Event "*** Qualifier 4: Titled Tuesday 3|2 Blitz"]
[Site "Chess.com"]
[Date "2017.04.25"]
[Round "1"]
[White "Aygehovit1992"]
[Black "r31415"]
[Result "1/2-1/2"]
[WhiteElo "2477"]
[BlackElo "2186"]
[TimeControl "180+2"]
[EndTime "13:11:40 PDT"]
[Termination "Game drawn by stalemate"]

1. e4 {[%clk 0:03:00.1]} 1... d6 {[%clk 0:02:57.7]} 2. d4 {[%clk 0:03:00.8]}
2... Nf6 {[%clk 0:02:58.9]} 3. Nc3 {[%clk 0:03:02.4]} 3... g6 {[%clk 0:02:59.5]}
4. Be2 {[%clk 0:03:03.7]} 4... Bg7 {[%clk 0:02:58.9]} 5. h4 {[%clk 0:03:05.4]}
5... h5 {[%clk 0:02:58.6]} 6. Be3 {[%clk 0:03:04.9]} 6... c6 {[%clk 0:02:57.1]}
7. Qd2 {[%clk 0:03:06]} 7... b5 {[%clk 0:02:56.7]} 8. a3 {[%clk 0:03:07.4]} 8...
Nbd7 {[%clk 0:02:56.7]} 9. f3 {[%clk 0:03:08.5]} 9... Qc7 {[%clk 0:02:55.2]} 10.
Nh3 {[%clk 0:03:09.9]} 10... Bb7 {[%clk 0:02:55.4]} 11. Ng5 {[%clk 0:03:11.1]}
11... a6 {[%clk 0:02:44.8]} 12. O-O-O {[%clk 0:03:06.4]} 12... c5 {[%clk
0:02:39.3]} 13. dxc5 {[%clk 0:02:38.3]} 13... Nxc5 {[%clk 0:02:39.1]} 14. Bd4
{[%clk 0:02:30.8]} 14... Rc8 {[%clk 0:02:17.8]} 15. Kb1 {[%clk 0:02:23.3]} 15...
O-O {[%clk 0:02:08.3]} 16. g4 {[%clk 0:02:22.9]} 16... hxg4 {[%clk 0:02:08.9]}
17. h5 {[%clk 0:02:23.3]} 17... gxh5 {[%clk 0:01:13.7]} 18. fxg4 {[%clk
0:02:13.9]} 18... Nfxe4 {[%clk 0:01:03.8]} 19. Ngxe4 {[%clk 0:02:13.5]} 19...
Nxe4 {[%clk 0:01:00.9]} 20. Nxe4 {[%clk 0:02:02.8]} 20... Bxe4 {[%clk
0:01:01.7]} 21. Bd3 {[%clk 0:01:29.2]} 21... Bxd3 {[%clk 0:00:49.2]} 22. Qxd3
{[%clk 0:01:28.8]} 22... Bxd4 {[%clk 0:00:39]} 23. Qxd4 {[%clk 0:01:29.8]} 23...
Qxc2+ {[%clk 0:00:36.3]} 24. Ka1 {[%clk 0:01:30.9]} 24... Rc4 {[%clk 0:00:24.9]}
25. Qe3 {[%clk 0:01:31.5]} 25... h4 {[%clk 0:00:17.8]} 26. Qg5+ {[%clk
0:01:29.8]} 26... Qg6 {[%clk 0:00:18.7]} 27. Qxh4 {[%clk 0:01:31]} 27... Qg7
{[%clk 0:00:12.1]} 28. Qxe7 {[%clk 0:01:31.1]} 28... Rc2 {[%clk 0:00:12.7]} 29.
Rb1 {[%clk 0:01:31.8]} 29... Rfc8 {[%clk 0:00:09.8]} 30. Qxd6 {[%clk 0:01:30.5]}
30... Re2 {[%clk 0:00:08.7]} 31. Qd7 {[%clk 0:01:27.1]} 31... Rce8 {[%clk
0:00:05.1]} 32. Qc6 {[%clk 0:01:19.3]} 32... R2e6 {[%clk 0:00:04.6]} 33. Qb7
{[%clk 0:01:11.8]} 33... R8e7 {[%clk 0:00:03.7]} 34. Qd5 {[%clk 0:00:57.4]}
34... Re5 {[%clk 0:00:03.9]} 35. Qa8+ {[%clk 0:00:51.1]} 35... Re8 {[%clk
0:00:05.2]} 36. Qxa6 {[%clk 0:00:52.7]} 36... Re3 {[%clk 0:00:05.1]} 37. g5
{[%clk 0:00:43.1]} 37... Rb3 {[%clk 0:00:06.2]} 38. Rh2 {[%clk 0:00:39.9]} 38...
Qe5 {[%clk 0:00:06.8]} 39. Rbh1 {[%clk 0:00:39]} 39... Re3 {[%clk 0:00:03.3]}
40. Rh8+ {[%clk 0:00:37.5]} 40... Qxh8 {[%clk 0:00:04.8]} 41. Rxh8+ {[%clk
0:00:38.3]} 41... Kxh8 {[%clk 0:00:06.7]} 42. Qxb5 {[%clk 0:00:39.5]} 42... Re1+
{[%clk 0:00:06.9]} 43. Ka2 {[%clk 0:00:40.4]} 43... R8e2 {[%clk 0:00:08.2]} 44.
a4 {[%clk 0:00:39.8]} 44... Rd2 {[%clk 0:00:08.9]} 45. a5 {[%clk 0:00:39.3]}
45... Rdd1 {[%clk 0:00:07.1]} 46. a6 {[%clk 0:00:40.5]} 46... Ra1+ {[%clk
0:00:08.5]} 47. Kb3 {[%clk 0:00:41.8]} 47... Re3+ {[%clk 0:00:10.1]} 48. Kc2
{[%clk 0:00:41.6]} 48... Re6 {[%clk 0:00:12]} 49. a7 {[%clk 0:00:32.7]} 49...
Rea6 {[%clk 0:00:11.3]} 50. Qe8+ {[%clk 0:00:33.3]} 50... Kg7 {[%clk 0:00:12.8]}
51. Qe5+ {[%clk 0:00:34]} 51... Kg8 {[%clk 0:00:14.1]} 52. Qd5 {[%clk
0:00:21.7]} 52... Rxa7 {[%clk 0:00:14.5]} 53. g6 {[%clk 0:00:22.4]} 53... Rc7+
{[%clk 0:00:15]} 54. Kb3 {[%clk 0:00:23]} 54... Raa7 {[%clk 0:00:16.9]} 55.
gxf7+ {[%clk 0:00:21.8]} 55... Rxf7 {[%clk 0:00:18.8]} 56. Qd8+ {[%clk 0:00:22]}
56... Kg7 {[%clk 0:00:19.3]} 57. Qg5+ {[%clk 0:00:22.7]} 57... Kh7 {[%clk
0:00:20.9]} 58. Qh5+ {[%clk 0:00:22.8]} 58... Kg7 {[%clk 0:00:22.4]} 59. Kc2
{[%clk 0:00:23.6]} 59... Rac7+ {[%clk 0:00:22.6]} 60. Kb1 {[%clk 0:00:23.4]}
60... Rb7 {[%clk 0:00:24.5]} 61. Qe5+ {[%clk 0:00:19.1]} 61... Kh7 {[%clk
0:00:25.2]} 62. Qe4+ {[%clk 0:00:19.1]} 62... Kg7 {[%clk 0:00:26.2]} 63. b4
{[%clk 0:00:20]} 63... Rb5 {[%clk 0:00:19.1]} 64. Qg4+ {[%clk 0:00:18.6]} 64...
Kf8 {[%clk 0:00:10.5]} 65. Qc8+ {[%clk 0:00:19.3]} 65... Kg7 {[%clk 0:00:11.4]}
66. Qc3+ {[%clk 0:00:20.2]} 66... Kg8 {[%clk 0:00:11]} 67. Qc4 {[%clk
0:00:16.7]} 67... Rf5 {[%clk 0:00:09.7]} 68. Kb2 {[%clk 0:00:16.9]} 68... Rf1
{[%clk 0:00:11.4]} 69. Kb3 {[%clk 0:00:15.1]} 69... Rf2 {[%clk 0:00:13.3]} 70.
b5 {[%clk 0:00:13.7]} 70... Rf4 {[%clk 0:00:13.2]} 71. Qc8+ {[%clk 0:00:13.4]}
71... Kg7 {[%clk 0:00:13.1]} 72. Qc3+ {[%clk 0:00:13.9]} 72... Kg8 {[%clk
0:00:10.8]} 73. Qg3+ {[%clk 0:00:14.3]} 73... Kf8 {[%clk 0:00:11.5]} 74. b6
{[%clk 0:00:13.6]} 74... Rf3+ {[%clk 0:00:12.5]} 75. Qxf3 {[%clk 0:00:14.7]}
75... Rxf3+ {[%clk 0:00:14.4]} 76. Kc4 {[%clk 0:00:16]} 76... Ke7 {[%clk
0:00:11.5]} 77. Kb5 {[%clk 0:00:14.1]} 77... Rf8 {[%clk 0:00:10.7]} 78. Kc6
{[%clk 0:00:14.5]} 78... Rc8+ {[%clk 0:00:10.2]} 79. Kb7 {[%clk 0:00:15.6]}
79... Kd7 {[%clk 0:00:11.5]} 80. Ka7 {[%clk 0:00:16.5]} 80... Kc6 {[%clk
0:00:11.9]} 81. b7 {[%clk 0:00:17.6]} 81... Rc7 {[%clk 0:00:13.3]} 82. Ka8
{[%clk 0:00:18.9]} 82... Rxb7 {[%clk 0:00:15.2]} 1/2-1/2

[Event "*** Qualifier 4: Titled Tuesday 3|2 Blitz"]
[Site "Chess.com"]
[Date "2017.04.25"]
[Round "1"]
[White "GMMarcinDziuba"]
[Black "FelixBlohberger"]
[Result "0-1"]
[WhiteElo "2515"]
[BlackElo "2261"]
[TimeControl "180+2"]
[EndTime "13:12:05 PDT"]
[Termination "FelixBlohberger won by resignation"]

1. d4 {[%clk 0:03:02]} 1... Nf6 {[%clk 0:03:00.2]} 2. c4 {[%clk 0:03:02.6]} 2...
e6 {[%clk 0:03:01.6]} 3. g3 {[%clk 0:03:02.2]} 3... Bb4+ {[%clk 0:02:55.9]} 4.
Bd2 {[%clk 0:03:01.1]} 4... a5 {[%clk 0:02:56.1]} 5. Bg2 {[%clk 0:03:02.1]} 5...
O-O {[%clk 0:02:57.4]} 6. Nf3 {[%clk 0:03:02.7]} 6... b6 {[%clk 0:02:58.6]} 7.
O-O {[%clk 0:02:59.3]} 7... Bb7 {[%clk 0:02:58.8]} 8. Bg5 {[%clk 0:02:58]} 8...
Be7 {[%clk 0:02:59]} 9. Nc3 {[%clk 0:02:58]} 9... h6 {[%clk 0:02:58.9]} 10. Bxf6
{[%clk 0:02:56.3]} 10... Bxf6 {[%clk 0:03:00.8]} 11. e4 {[%clk 0:02:57.6]} 11...
d6 {[%clk 0:03:02.1]} 12. Qc2 {[%clk 0:02:53.7]} 12... Nd7 {[%clk 0:03:02.1]}
13. Rad1 {[%clk 0:02:54.5]} 13... e5 {[%clk 0:03:03.4]} 14. Nd5 {[%clk
0:02:31.6]} 14... Bxd5 {[%clk 0:02:41]} 15. cxd5 {[%clk 0:02:27.8]} 15... exd4
{[%clk 0:02:42.9]} 16. Nxd4 {[%clk 0:02:26.5]} 16... Bxd4 {[%clk 0:02:41.8]} 17.
Rxd4 {[%clk 0:02:28.4]} 17... Nc5 {[%clk 0:02:34.8]} 18. b3 {[%clk 0:02:15.7]}
18... Qf6 {[%clk 0:02:22.9]} 19. Rc4 {[%clk 0:02:16.7]} 19... Rae8 {[%clk
0:02:17]} 20. f4 {[%clk 0:02:05.1]} 20... Qg6 {[%clk 0:02:13.1]} 21. Re1 {[%clk
0:01:49.2]} 21... Re7 {[%clk 0:02:09]} 22. a3 {[%clk 0:01:42.2]} 22... Rfe8
{[%clk 0:02:10.3]} 23. b4 {[%clk 0:01:37.9]} 23... axb4 {[%clk 0:01:50.8]} 24.
axb4 {[%clk 0:01:38.3]} 24... Na6 {[%clk 0:01:31.8]} 25. Ra1 {[%clk 0:01:39.1]}
25... b5 {[%clk 0:01:33.1]} 26. Rd4 {[%clk 0:01:18.8]} 26... Qf6 {[%clk
0:01:34.2]} 27. Rdd1 {[%clk 0:01:14.6]} 27... Nxb4 {[%clk 0:01:30.9]} 28. Qd2
{[%clk 0:00:55.4]} 28... Rxe4 {[%clk 0:01:21.2]} 29. Bxe4 {[%clk 0:00:55.8]}
29... Rxe4 {[%clk 0:01:23.1]} 30. Re1 {[%clk 0:00:56.2]} 30... Rd4 {[%clk
0:01:08.3]} 31. Ra8+ {[%clk 0:00:39.2]} 31... Kh7 {[%clk 0:01:09]} 32. Qc3
{[%clk 0:00:37.2]} 32... Nxd5 {[%clk 0:01:08.6]} 33. Qc2+ {[%clk 0:00:37.6]}
33... g6 {[%clk 0:01:03.9]} 34. Ree8 {[%clk 0:00:38]} 34... Rc4 {[%clk
0:01:00.6]} 35. Rh8+ {[%clk 0:00:16.9]} 35... Qxh8 {[%clk 0:01:01.6]} 36. Rxh8+
{[%clk 0:00:18]} 36... Kxh8 {[%clk 0:01:03.5]} 37. Qb3 {[%clk 0:00:15]} 37...
Nc3 {[%clk 0:01:00.3]} 38. Qa3 {[%clk 0:00:14.6]} 38... Kg7 {[%clk 0:01:00.9]}
39. Qa5 {[%clk 0:00:14.8]} 39... c5 {[%clk 0:00:54.1]} 40. Qc7 {[%clk
0:00:15.2]} 40... Rd4 {[%clk 0:00:53.9]} 41. f5 {[%clk 0:00:13.9]} 41... Nd5
{[%clk 0:00:51.7]} 42. Qd7 {[%clk 0:00:13.4]} 42... b4 {[%clk 0:00:50.2]} 43.
fxg6 {[%clk 0:00:11.9]} 43... Kxg6 {[%clk 0:00:51.7]} 44. Qxd6+ {[%clk
0:00:13.4]} 44... Kf5 {[%clk 0:00:42.9]} 45. Qxc5 {[%clk 0:00:14.8]} 45... Ke4
{[%clk 0:00:43.5]} 46. Qc2+ {[%clk 0:00:15]} 46... Rd3 {[%clk 0:00:43]} 47. Qc4+
{[%clk 0:00:16.1]} 47... Rd4 {[%clk 0:00:43.7]} 48. Qe2+ {[%clk 0:00:17.1]}
48... Kf5 {[%clk 0:00:40.3]} 49. Qf3+ {[%clk 0:00:17.6]} 49... Ke6 {[%clk
0:00:36.1]} 50. h4 {[%clk 0:00:17.9]} 50... f5 {[%clk 0:00:32.8]} 51. Qh5 {[%clk
0:00:18]} 51... b3 {[%clk 0:00:21.5]} 52. Qxh6+ {[%clk 0:00:19.3]} 52... Ke5
{[%clk 0:00:22.8]} 53. Qc1 {[%clk 0:00:19]} 53... Rd3 {[%clk 0:00:24.2]} 54. h5
{[%clk 0:00:18.1]} 54... Rxg3+ {[%clk 0:00:10.2]} 55. Kh2 {[%clk 0:00:19.2]}
55... f4 {[%clk 0:00:11.7]} 56. h6 {[%clk 0:00:18.9]} 56... Rg6 {[%clk 0:00:13]}
57. Qb2+ {[%clk 0:00:17.5]} 57... Kd6 {[%clk 0:00:10.1]} 58. Qh8 {[%clk
0:00:12.5]} 58... b2 {[%clk 0:00:11.3]} 59. Qxb2 {[%clk 0:00:12.3]} 59... Rxh6+
{[%clk 0:00:12.2]} 60. Kg2 {[%clk 0:00:13.7]} 60... Rg6+ {[%clk 0:00:11.5]} 61.
Kf2 {[%clk 0:00:13.8]} 61... Rg3 {[%clk 0:00:11.4]} 62. Qb8+ {[%clk 0:00:13.7]}
62... Ke6 {[%clk 0:00:10.6]} 63. Qc8+ {[%clk 0:00:14.8]} 63... Ke5 {[%clk
0:00:10.9]} 64. Qe8+ {[%clk 0:00:15.1]} 64... Kd4 {[%clk 0:00:12]} 65. Qa4+
{[%clk 0:00:15.9]} 65... Ke5 {[%clk 0:00:12.2]} 66. Qa5 {[%clk 0:00:16.2]} 66...
Re3 {[%clk 0:00:12.5]} 67. Qd8 {[%clk 0:00:15.8]} 67... Kd4 {[%clk 0:00:11.8]}
68. Qh8+ {[%clk 0:00:15.5]} 68... Kc4 {[%clk 0:00:12.1]} 69. Qg8 {[%clk
0:00:14.9]} 69... Kd4 {[%clk 0:00:12.8]} 70. Qd8 {[%clk 0:00:15]} 70... Ke4
{[%clk 0:00:13.5]} 71. Qd6 {[%clk 0:00:15.4]} 71... Rf3+ {[%clk 0:00:14]} 72.
Kg1 {[%clk 0:00:16.1]} 72... Rg3+ {[%clk 0:00:13]} 73. Kf2 {[%clk 0:00:16.5]}
73... Rf3+ {[%clk 0:00:14.3]} 74. Kg1 {[%clk 0:00:17.7]} 74... Rg3+ {[%clk
0:00:10.7]} 75. Kh2 {[%clk 0:00:18.8]} 75... Ne3 {[%clk 0:00:08.3]} 76. Qc6+
{[%clk 0:00:19.1]} 76... Kd3 {[%clk 0:00:05.6]} 77. Qb5+ {[%clk 0:00:19.7]}
77... Ke4 {[%clk 0:00:04.8]} 78. Qc6+ {[%clk 0:00:20.6]} 78... Kd4 {[%clk
0:00:06.3]} 79. Qd6+ {[%clk 0:00:21.6]} 79... Ke4 {[%clk 0:00:07.9]} 80. Qe6+
{[%clk 0:00:22.2]} 80... Kf3 {[%clk 0:00:08.1]} 81. Qc6+ {[%clk 0:00:21.5]}
81... Kf2 {[%clk 0:00:09]} 82. Qc5 {[%clk 0:00:22.5]} 82... Rg7 {[%clk
0:00:06.3]} 83. Qh5 {[%clk 0:00:21.1]} 83... Rg2+ {[%clk 0:00:05.9]} 84. Kh3
{[%clk 0:00:21.5]} 84... Rg3+ {[%clk 0:00:07.4]} 85. Kh2 {[%clk 0:00:22.2]}
85... Nf1+ {[%clk 0:00:08.9]} 0-1

[Event "*** Qualifier 4: Titled Tuesday 3|2 Blitz"]
[Site "Chess.com"]
[Date "2017.04.25"]
[Round "1"]
[White "VMikhalevski"]
[Black "gumersindo"]
[Result "0-1"]
[WhiteElo "2538"]
[BlackElo "2269"]
[TimeControl "180+2"]
[EndTime "13:12:31 PDT"]
[Termination "gumersindo won by resignation"]

1. Nf3 {[%clk 0:03:02]} 1... d5 {[%clk 0:02:59.2]} 2. g3 {[%clk 0:03:02.3]} 2...
Nf6 {[%clk 0:02:57.8]} 3. Bg2 {[%clk 0:03:03.2]} 3... e6 {[%clk 0:02:56]} 4. O-O
{[%clk 0:03:04.1]} 4... Be7 {[%clk 0:02:55.2]} 5. c4 {[%clk 0:03:05]} 5... O-O
{[%clk 0:02:51.2]} 6. b3 {[%clk 0:03:06]} 6... c5 {[%clk 0:02:49]} 7. Bb2 {[%clk
0:03:06.8]} 7... Nc6 {[%clk 0:02:39.4]} 8. e3 {[%clk 0:03:06.9]} 8... d4 {[%clk
0:02:35.7]} 9. exd4 {[%clk 0:03:07.4]} 9... cxd4 {[%clk 0:02:36.6]} 10. Re1
{[%clk 0:03:07.6]} 10... a5 {[%clk 0:02:28.5]} 11. Na3 {[%clk 0:03:04.3]} 11...
Bc5 {[%clk 0:02:24.3]} 12. Nb5 {[%clk 0:02:55.3]} 12... Re8 {[%clk 0:02:21.9]}
13. Ne5 {[%clk 0:02:55.4]} 13... Nxe5 {[%clk 0:02:05.1]} 14. Rxe5 {[%clk
0:02:56]} 14... Nd7 {[%clk 0:02:05.8]} 15. Rxc5 {[%clk 0:02:37.7]} 15... Nxc5
{[%clk 0:02:05]} 16. Bxd4 {[%clk 0:02:38.7]} 16... Nd7 {[%clk 0:01:45]} 17. Nd6
{[%clk 0:02:37.2]} 17... Rf8 {[%clk 0:01:46.1]} 18. Nxb7 {[%clk 0:02:27.6]}
18... Qc7 {[%clk 0:01:31.1]} 19. Nc5 {[%clk 0:02:26.4]} 19... Rb8 {[%clk
0:01:19.2]} 20. Na4 {[%clk 0:02:24.3]} 20... e5 {[%clk 0:01:17.4]} 21. Be3
{[%clk 0:02:17.9]} 21... Bb7 {[%clk 0:01:18.4]} 22. Nc3 {[%clk 0:02:15.9]} 22...
Bxg2 {[%clk 0:01:18.2]} 23. Kxg2 {[%clk 0:02:16.6]} 23... Nf6 {[%clk 0:01:18.3]}
24. Bg5 {[%clk 0:02:10.3]} 24... Qc6+ {[%clk 0:01:19.2]} 25. Qf3 {[%clk
0:02:06.5]} 25... Qxf3+ {[%clk 0:01:17.1]} 26. Kxf3 {[%clk 0:02:07]} 26... Nd7
{[%clk 0:01:18.4]} 27. Nd5 {[%clk 0:02:02.2]} 27... f6 {[%clk 0:01:16.2]} 28.
Be3 {[%clk 0:02:02.6]} 28... Kf7 {[%clk 0:01:16.4]} 29. Rc1 {[%clk 0:01:57.4]}
29... Rfc8 {[%clk 0:01:11.1]} 30. g4 {[%clk 0:01:54.3]} 30... Nc5 {[%clk
0:01:02.6]} 31. d4 {[%clk 0:01:48.8]} 31... exd4 {[%clk 0:01:01.9]} 32. Bxd4
{[%clk 0:01:49.5]} 32... Nd3 {[%clk 0:01:01.8]} 33. Rc3 {[%clk 0:01:47.2]} 33...
Nb4 {[%clk 0:01:02.6]} 34. Nb6 {[%clk 0:01:39.2]} 34... Rd8 {[%clk 0:00:59.6]}
35. Be3 {[%clk 0:01:35]} 35... Nxa2 {[%clk 0:00:58]} 36. Rc2 {[%clk 0:01:34.6]}
36... Nb4 {[%clk 0:00:58.9]} 37. Rc3 {[%clk 0:01:29.1]} 37... Na2 {[%clk
0:00:43]} 38. Rc2 {[%clk 0:01:29.5]} 38... Nb4 {[%clk 0:00:43.5]} 39. Rb2 {[%clk
0:01:28.8]} 39... Rd3 {[%clk 0:00:41.3]} 40. Na4 {[%clk 0:01:27.2]} 40... Nc6
{[%clk 0:00:40.3]} 41. Nc5 {[%clk 0:01:26.8]} 41... Rdd8 {[%clk 0:00:29.9]} 42.
h3 {[%clk 0:01:19.2]} 42... Ne5+ {[%clk 0:00:30.3]} 43. Ke2 {[%clk 0:01:11.4]}
43... Nxc4 {[%clk 0:00:31.3]} 44. Ra2 {[%clk 0:01:11.9]} 44... Nxe3 {[%clk
0:00:32.3]} 45. Kxe3 {[%clk 0:01:10]} 45... Rb5 {[%clk 0:00:32.5]} 46. Ne4
{[%clk 0:01:03.8]} 46... Rxb3+ {[%clk 0:00:33]} 47. Ke2 {[%clk 0:01:04.1]} 47...
Re8 {[%clk 0:00:33.2]} 48. f3 {[%clk 0:01:03.5]} 48... Rb5 {[%clk 0:00:30.1]}
49. Kf2 {[%clk 0:01:02.8]} 49... Re6 {[%clk 0:00:30.4]} 50. Rc2 {[%clk
0:01:01.6]} 50... Rb7 {[%clk 0:00:29.3]} 51. Rd2 {[%clk 0:00:55.4]} 51... Ra7
{[%clk 0:00:27.3]} 52. Nc5 {[%clk 0:00:54.5]} 52... Rc6 {[%clk 0:00:27.9]} 53.
Na4 {[%clk 0:00:54.8]} 53... h6 {[%clk 0:00:28.7]} 54. Rb2 {[%clk 0:00:51.9]}
54... Rc4 {[%clk 0:00:29.1]} 55. Ra2 {[%clk 0:00:52.8]} 55... Rb4 {[%clk
0:00:29.5]} 56. h4 {[%clk 0:00:51.2]} 56... g6 {[%clk 0:00:29.2]} 57. Nc3 {[%clk
0:00:46.8]} 57... a4 {[%clk 0:00:29.6]} 58. Nd5 {[%clk 0:00:43.7]} 58... Rb5
{[%clk 0:00:28.3]} 59. Nc3 {[%clk 0:00:43.8]} 59... Rba5 {[%clk 0:00:28]} 60.
Ra3 {[%clk 0:00:43.4]} 60... Ke6 {[%clk 0:00:27.9]} 61. Ke3 {[%clk 0:00:43.6]}
61... Kd6 {[%clk 0:00:26.6]} 62. Ne4+ {[%clk 0:00:43]} 62... Ke7 {[%clk
0:00:23.6]} 63. Nc3 {[%clk 0:00:43]} 63... h5 {[%clk 0:00:21.2]} 64. Kd4 {[%clk
0:00:39.6]} 64... hxg4 {[%clk 0:00:21.8]} 65. fxg4 {[%clk 0:00:40]} 65... f5
{[%clk 0:00:21.9]} 66. g5 {[%clk 0:00:39.5]} 66... Rd7+ {[%clk 0:00:21.4]} 67.
Ke3 {[%clk 0:00:36.1]} 67... Rc7 {[%clk 0:00:21.4]} 68. Kd4 {[%clk 0:00:36.7]}
68... Ke6 {[%clk 0:00:20]} 69. Nxa4 {[%clk 0:00:32.4]} 69... Kf7 {[%clk
0:00:17.5]} 70. Ra2 {[%clk 0:00:25.1]} 70... Rca7 {[%clk 0:00:18]} 71. Rh2
{[%clk 0:00:23]} 71... Rxa4+ {[%clk 0:00:18.8]} 72. Kc5 {[%clk 0:00:24.3]} 72...
R7a5+ {[%clk 0:00:19.2]} 73. Kb6 {[%clk 0:00:25.3]} 73... Re5 {[%clk 0:00:20.7]}
74. h5 {[%clk 0:00:25.2]} 74... gxh5 {[%clk 0:00:21.8]} 75. Rxh5 {[%clk
0:00:26.2]} 75... Kg6 {[%clk 0:00:23.4]} 76. Rh8 {[%clk 0:00:27.3]} 76... Kxg5
{[%clk 0:00:24.9]} 77. Rg8+ {[%clk 0:00:28.9]} 77... Kf4 {[%clk 0:00:26.3]} 78.
Rh8 {[%clk 0:00:30.1]} 78... Rb4+ {[%clk 0:00:27.1]} 79. Kc6 {[%clk 0:00:30.6]}
79... Rb1 {[%clk 0:00:28.4]} 80. Kd6 {[%clk 0:00:30.4]} 80... Rd1+ {[%clk
0:00:28.6]} 81. Kc6 {[%clk 0:00:31.5]} 81... Re2 {[%clk 0:00:30.1]} 82. Kc5
{[%clk 0:00:31]} 82... Rc2+ {[%clk 0:00:31.1]} 83. Kb4 {[%clk 0:00:32.1]} 83...
Rb1+ {[%clk 0:00:32.5]} 84. Ka3 {[%clk 0:00:33.1]} 84... Rc7 {[%clk 0:00:34]}
85. Ka2 {[%clk 0:00:34.2]} 85... Rb6 {[%clk 0:00:34.9]} 86. Ra8 {[%clk
0:00:34.9]} 86... Kf3 {[%clk 0:00:35]} 87. Ra3+ {[%clk 0:00:35.7]} 87... Kf2
{[%clk 0:00:36.3]} 88. Ra4 {[%clk 0:00:36.8]} 88... Rc5 {[%clk 0:00:35.1]} 89.
Ka3 {[%clk 0:00:35.1]} 89... Ke3 {[%clk 0:00:35.7]} 90. Ka2 {[%clk 0:00:35.1]}
90... f4 {[%clk 0:00:37]} 91. Ra3+ {[%clk 0:00:36.3]} 91... Ke2 {[%clk
0:00:38.2]} 92. Ka1 {[%clk 0:00:34.9]} 92... f3 {[%clk 0:00:36.4]} 93. Ra2+
{[%clk 0:00:35.3]} 93... Kd3 {[%clk 0:00:37.4]} 94. Ra3+ {[%clk 0:00:36]} 94...
Rc3 {[%clk 0:00:38.2]} 95. Ra8 {[%clk 0:00:35.4]} 95... f2 {[%clk 0:00:38.6]}
96. Ka2 {[%clk 0:00:31.9]} 96... Rc2+ {[%clk 0:00:36.7]} 97. Ka3 {[%clk
0:00:31.6]} 97... f1=Q {[%clk 0:00:35.8]} 98. Rd8+ {[%clk 0:00:32.3]} 98... Ke4
{[%clk 0:00:36.8]} 99. Re8+ {[%clk 0:00:32.2]} 99... Kd5 {[%clk 0:00:38]} 100.
Rd8+ {[%clk 0:00:32.4]} 100... Rd6 {[%clk 0:00:39.6]} 0-1

[Event "*** Qualifier 4: Titled Tuesday 3|2 Blitz"]
[Site "Chess.com"]
[Date "2017.04.25"]
[Round "2"]
[White "FLchessplayer"]
[Black "Outsmiter"]
[Result "1-0"]
[WhiteElo "2029"]
[BlackElo "2054"]
[TimeControl "180+2"]
[EndTime "13:16:02 PDT"]
[Termination "FLchessplayer won by resignation"]

1. d4 {[%clk 0:03:02]} 1... d6 {[%clk 0:02:44.4]} 2. e4 {[%clk 0:03:01.4]} 2...
Nf6 {[%clk 0:02:44.9]} 3. Nc3 {[%clk 0:03:02.4]} 3... g6 {[%clk 0:02:45.8]} 4.
f3 {[%clk 0:03:03.6]} 4... Bg7 {[%clk 0:02:46.7]} 5. Be3 {[%clk 0:03:04.6]} 5...
O-O {[%clk 0:02:47.9]} 6. Qd2 {[%clk 0:03:05.7]} 6... a6 {[%clk 0:02:48]} 7. a3
{[%clk 0:03:04.7]} 7... b5 {[%clk 0:02:48.6]} 8. Bd3 {[%clk 0:03:04.4]} 8... Bb7
{[%clk 0:02:49.3]} 9. Nce2 {[%clk 0:03:05.1]} 9... c5 {[%clk 0:02:47.6]} 10. c3
{[%clk 0:03:05.7]} 10... Nfd7 {[%clk 0:02:44.2]} 11. g4 {[%clk 0:03:00]} 11...
Nc6 {[%clk 0:02:43.8]} 12. d5 {[%clk 0:02:55.2]} 12... Nce5 {[%clk 0:02:43.8]}
13. O-O-O {[%clk 0:02:54.8]} 13... Nxd3+ {[%clk 0:02:41.5]} 14. Qxd3 {[%clk
0:02:54.9]} 14... Ne5 {[%clk 0:02:42.2]} 15. Qd2 {[%clk 0:02:56]} 15... c4
{[%clk 0:02:43]} 16. Kb1 {[%clk 0:02:56.5]} 16... a5 {[%clk 0:02:43.4]} 17. h3
{[%clk 0:02:47.7]} 17... b4 {[%clk 0:02:35.6]} 18. axb4 {[%clk 0:02:47.4]} 18...
axb4 {[%clk 0:02:37.5]} 19. cxb4 {[%clk 0:02:48.6]} 19... Qd7 {[%clk 0:02:35.3]}
20. Bd4 {[%clk 0:02:39.7]} 20... Qa4 {[%clk 0:02:31.8]} 21. f4 {[%clk
0:02:40.7]} 21... Nd3 {[%clk 0:02:26.3]} 22. Bxg7 {[%clk 0:02:39.5]} 22... Nxb4
{[%clk 0:02:23]} 23. b3 {[%clk 0:02:28.8]} 23... Qa1+ {[%clk 0:02:21.1]} 24.
Bxa1 {[%clk 0:02:28.3]} 1-0

[Event "*** Qualifier 4: Titled Tuesday 3|2 Blitz"]
[Site "Chess.com"]
[Date "2017.04.25"]
[Round "2"]
[White "Robin-Side"]
[Black "Quiet_Desperation"]
[Result "1-0"]
[WhiteElo "2326"]
[BlackElo "2145"]
[TimeControl "180+2"]
[EndTime "13:16:50 PDT"]
[Termination "Robin-Side won by resignation"]

1. e4 {[%clk 0:03:01.9]} 1... Nc6 {[%clk 0:03:00.8]} 2. Nc3 {[%clk 0:02:59.8]}
2... d6 {[%clk 0:03:01.6]} 3. d4 {[%clk 0:03:00]} 3... Nf6 {[%clk 0:03:03]} 4.
f4 {[%clk 0:03:00]} 4... d5 {[%clk 0:03:01.3]} 5. e5 {[%clk 0:02:54.3]} 5... Ne4
{[%clk 0:03:01.7]} 6. Nf3 {[%clk 0:02:51.2]} 6... Bg4 {[%clk 0:03:00]} 7. Be3
{[%clk 0:02:48.7]} 7... e6 {[%clk 0:02:56.3]} 8. a3 {[%clk 0:02:49.5]} 8... Be7
{[%clk 0:02:55.3]} 9. Bd3 {[%clk 0:02:46.5]} 9... Nxc3 {[%clk 0:02:52]} 10. bxc3
{[%clk 0:02:46.7]} 10... f6 {[%clk 0:02:42.6]} 11. exf6 {[%clk 0:02:31.9]} 11...
gxf6 {[%clk 0:02:27.7]} 12. O-O {[%clk 0:02:29.7]} 12... O-O {[%clk 0:02:13]}
13. Qe1 {[%clk 0:02:21.7]} 13... Kh8 {[%clk 0:02:00]} 14. Bxh7 {[%clk
0:02:13.8]} 14... Bxf3 {[%clk 0:01:40.9]} 15. Rxf3 {[%clk 0:02:11.8]} 15... Rf7
{[%clk 0:01:40.2]} 16. Bd3 {[%clk 0:01:41.9]} 16... Rh7 {[%clk 0:01:33.5]} 1-0